[Event "10th Cherry Blossom Classic 2023"]
[Site "Dulles"]
[Date "2023.05.28"]
[Round "5.7"]
[White "Marjanovic, Annamaria"]
[Black "Park, Evan"]
[Result "1/2-1/2"]
[ECO "A13"]
[WhiteElo "2273"]
[BlackElo "2380"]
[Annotator "TA"]
[PlyCount "168"]
[EventDate "2023.05.24"]
[EventType "swiss"]
[EventCountry "USA"]
[SourceTitle "playchess.com"]
[Source "ChessBase"]
[SourceQuality "1"]
[TimeControl "5400+30"]

{[%evp 14,168,29,15,18,10,16,0,0,0,0,0,13,16,34,0,0,0,0,2,11,2,2,2,3,3,7,0,0,0,6,0,0,-83,-89,-91,-52,-65,-66,-64,-47,-54,-42,-72,-72,-72,-72,-72,-84,-72,-72,-85,-88,-88,-78,-91,-75,-77,-77,-91,-94,-166,-100,-193,-127,-208,-193,-199,-183,-193,-178,-166,-124,-310,-324,-300,-297,-215,0,0,0,0,0,0,0,0,0,0,0,0,0,0,0,0,0,0,0,0,0,0,0,-8,-8,-8,-8,-8,-8,-8,-8,-8,-8,-8,-8,-8,-8,-8,-8,-8,-8,-8,-8,-8,0,-8,0,-8,-8,-8,-8,-8,0,-8,-8,-8,-8,-8,0,0,0,0,0,0,0,0,0,0,0,0,0,0,0,0,0,0,0,0,0]} 1. c4 {[%emt 0:00:03]} e6 {[%emt 0:10:57]} 2. g3 {[%emt 0:00:12]} Nf6 {[%emt 0:00:52]} 3. Bg2 {[%emt 0:00:07]} d5 {[%emt 0:00:35]} 4. Nf3 {[%emt 0:00:08]} d4 {[%emt 0:01:29]} 5. O-O {[%emt 0:01:20]} c5 {[%emt 0:00:14]} 6. e3 {[%emt 0:00:24]} Nc6 {[%emt 0:00:08]} 7. exd4 {[%emt 0:02:06]} cxd4 {[%emt 0:00:27]} 8. d3 {[%emt 0:00:13]} Bc5 {[%emt 0:02:56] A13: English Opening: 1...e6.} 9. a3 {[%emt 0:03:24]} a5 $1 {[%emt 0:00:08]} 10. Re1 {[%emt 0:00:24]} O-O {[%emt 0:02:34]} 11. Bg5 {[%emt 0:02:15]} h6 {[%emt 0:03:07]} 12. Bxf6 {[%emt 0:00:29] [#]} gxf6 $146 {[%emt 0:03:58]} ({Predecessor:} 12... Qxf6 13. Qe2 a4 14. Nbd2 Bb6 15. Ne5 Nxe5 16. Qxe5 Qxe5 17. Rxe5 Ra5 18. Rxa5 Bxa5 {1-0 Muradli,M (2523)-Harshita,G (2230) Novi Sad Serbia op-A 2022 (2)}) 13. Nbd2 {[%emt 0:05:48]} Kh7 {[%emt 0:01:57]} 14. Nh4 {[%emt 0:04:25]} f5 {[%emt 0:02:00]} 15. f4 {[%emt 0:00:38]} Bd7 {[%emt 0:02:24]} 16. Qe2 {[%emt 0:05:47]} Rb8 {[%emt 0:06:28]} (16... a4 {seems wilder.} 17. Qh5 Be7 18. Nhf3 Rb8) 17. Rab1 {[%emt 0:03:03]} a4 {[%emt 0:04:52]} 18. Nhf3 {[%emt 0:06:03]} Qe7 {[%emt 0:02:01]} 19. Qd1 {[%emt 0:10:37]} Ra8 {[%emt 0:02:44]} 20. Ne5 {[%emt 0:04:09]} Nxe5 {[%emt 0:01:40]} 21. Rxe5 {[%emt 0:00:19]} Rab8 {[%emt 0:01:43]} 22. Bh3 {[%emt 0:09:04] And now Bxf5+ would win.} Qd6 {[%emt 0:00:29]} 23. b4 {[%emt 0:06:35]} (23. Qh5 $11) 23... axb3 $17 {[%emt 0:00:09]} 24. Nxb3 {[%emt 0:00:07]} b6 {[%emt 0:03:19]} 25. Nxc5 {[%emt 0:02:56]} bxc5 {[%emt 0:00:02]} 26. Re2 {[%emt 0:04:43]} Qa6 {[%emt 0:04:40]} (26... Bc6 {is interesting.} 27. Kf2 Rxb1 28. Qxb1 Ra8) 27. Ra2 {[%emt 0:01:45]} Qa4 {[%emt 0:00:14]} 28. Qc1 {[%emt 0:00:54]} Rb3 {[%emt 0:03:16]} 29. Rxb3 {[%emt 0:07:06]} Qxb3 {[%emt 0:00:05]} 30. Qc2 {[%emt 0:00:09]} Qxc2 {[%emt 0:01:27]} 31. Rxc2 {[%emt 0:00:06][%mdl 4096] Endgame KRB-KRB} Rb8 {[%emt 0:00:09] Prevents Rb2} 32. Ra2 {[%emt 0:00:33]} Ba4 {[%emt 0:00:28]} 33. Bf1 {[%emt 0:03:15]} f6 {[%emt 0:01:53]} 34. Re2 {[%emt 0:02:41]} Rb6 {[%emt 0:00:19]} 35. Re1 {[%emt 0:00:14]} Kg7 {[%emt 0:00:15]} 36. Kf2 {[%emt 0:03:14]} Kf7 {[%emt 0:01:19]} 37. Be2 {[%emt 0:00:16]} (37. h3 $17) 37... Ke7 {[%emt 0:00:29]} ({Black should try} 37... Rb2 $19 38. Kf1 e5) 38. h3 {[%emt 0:03:16]} (38. g4 $17 {was called for.}) 38... Bc2 {[%emt 0:02:40]} (38... e5 $19 {Threatens to win with ...e4.} 39. fxe5 fxe5) 39. Ra1 {[%emt 0:03:42] [#]} (39. g4 $17) 39... Rb2 $1 $19 {[%emt 0:00:28]} ({Stronger than} 39... Rb3 40. a4 Rb1 41. Ra3 $11 (41. Rxb1 Bxb1 42. a5 Kd6 $11)) 40. Ke1 {[%emt 0:00:59]} Ba4 {[%emt 0:00:27]} 41. g4 {[%emt 0:00:46]} fxg4 {[%emt 0:00:53]} 42. hxg4 {[%emt 0:00:05]} e5 {[%emt 0:00:32]} 43. fxe5 {[%emt 0:03:47]} (43. Bd1 $17 Rh2 44. Bf3) 43... fxe5 {[%emt 0:00:02][%cal Oe5e4]} 44. Bd1 {[%emt 0:00:14] [#]} Rh2 $1 {[%emt 0:04:24] ...Bc2 is the strong threat.} 45. Rb1 {[%emt 0:01:46]} Bxd1 $2 {[%emt 0:01:19]} (45... Rh1+ $19 46. Kd2 Bxd1 47. Rxd1 Rh2+ 48. Kc1 Ra2) 46. Kxd1 {[%emt 0:00:12] KR-KR. The position is equal.} e4 {[%emt 0:03:35]} 47. dxe4 {[%emt 0:00:56]} Kd6 {[%emt 0:00:39]} (47... Ke6 $5 48. Rb5 $8 Ke5 49. Rxc5+ Kxe4 $11) 48. Rb5 $1 {[%emt 0:00:32]} Ke5 {[%emt 0:01:16][%cal Od4d3] aiming for ...d3!} 49. Rxc5+ {[%emt 0:00:11]} Kxe4 {[%emt 0:00:03]} 50. Rh5 {[%emt 0:00:23]} Rg2 {[%emt 0:01:15]} 51. Rxh6 {[%emt 0:01:08]} Kd3 {[%emt 0:00:05][%cal Rg2g1]} 52. Rh3+ $1 {[%emt 0:00:12]} Kxc4 {[%emt 0:00:03]} 53. g5 {[%emt 0:00:30][%mdl 64] Deflection} Rxg5 {[%emt 0:00:04]} (53... d3 $5 {[%cal Rc4c3]} 54. Rh7 Kd4 $11) 54. Kd2 {[%emt 0:00:24]} Rg2+ {[%emt 0:00:04]} 55. Kd1 {[%emt 0:00:09]} Ra2 {[%emt 0:00:03]} (55... d3 $5 {[%cal Rc4c3]} 56. Rh7 Re2 $11) 56. Rg3 {[%emt 0:00:26]} Rh2 {[%emt 0:00:06]} 57. a4 {[%emt 0:00:19]} Ra2 {[%emt 0:00:04]} 58. Rh3 {[%emt 0:00:17]} Rxa4 {[%emt 0:00:06]} 59. Kd2 {[%emt 0:00:07]} Ra8 {[%emt 0:00:08]} 60. Rg3 {[%emt 0:00:15]} Rh8 {[%emt 0:00:11]} 61. Rf3 $1 {[%emt 0:00:14]} Rh1 {[%emt 0:00:05]} 62. Rg3 {[%emt 0:00:08]} Rh4 {[%emt 0:00:10]} 63. Ra3 {[%emt 0:00:26]} Rh2+ {[%emt 0:00:15]} 64. Kd1 {[%emt 0:00:06]} Kd5 {[%emt 0:00:04]} 65. Rb3 $1 {[%emt 0:00:21]} Ke4 {[%emt 0:00:07]} 66. Ra3 {[%emt 0:00:05]} Rh1+ {[%emt 0:00:07]} 67. Kd2 {[%emt 0:00:06]} Rh2+ {[%emt 0:00:31]} 68. Kd1 {[%emt 0:00:06]} Rh1+ {[%emt 0:00:02]} 69. Kd2 {[%emt 0:00:05]} Rg1 {[%emt 0:00:03]} 70. Rh3 {[%emt 0:00:12]} Rg2+ {[%emt 0:00:03]} 71. Kd1 {[%emt 0:00:06]} Rg1+ {[%emt 0:00:02]} 72. Kd2 {[%emt 0:00:06]} Ra1 {[%emt 0:00:04]} 73. Rb3 {[%emt 0:00:15]} Ra2+ {[%emt 0:00:05]} 74. Kd1 {[%emt 0:00:06]} d3 {[%emt 0:00:09]} 75. Rb8 {[%emt 0:00:08]} Ra1+ {[%emt 0:00:05]} 76. Kd2 {[%emt 0:00:05]} Ra2+ {[%emt 0:00:11]} 77. Kd1 {[%emt 0:00:06]} d2 {[%emt 0:00:21]} 78. Re8+ {[%emt 0:00:20]} Kd3 {[%emt 0:00:05][%cal Ra2a1]} 79. Rd8+ {[%emt 0:00:04]} Ke3 {[%emt 0:00:07]} 80. Re8+ {[%emt 0:00:02]} (80. Rd3+ $5 Ke4 81. Rxd2 $11) 80... Kd4 {[%emt 0:00:06]} 81. Rd8+ {[%emt 0:00:04]} Kc3 {[%emt 0:00:03]} 82. Rc8+ {[%emt 0:00:06]} (82. Rd3+ $5 Kc4 83. Rd8 $11) 82... Kd3 {[%emt 0:00:09]} 83. Rd8+ {[%emt 0:00:06]} Ke3 {[%emt 0:00:03] ( -> ...Ra1+)} 84. Re8+ {[%emt 0:00:06]} Kd3 {[%emt 0:00:03] And White is the lucky defender.   Weighted Error Value: White=0.13 (very precise) /Black=0.10 (very precise)} 1/2-1/2

[Event "10th Cherry Blossom Classic 2023"]
[Site "Dulles"]
[Date "2023.05.28"]
[Round "5.8"]
[White "Muzychuk, Anna"]
[Black "Tanenbaum, Zachary"]
[Result "1/2-1/2"]
[ECO "C55"]
[WhiteElo "2504"]
[BlackElo "2261"]
[Annotator "TA"]
[PlyCount "84"]
[EventDate "2023.05.24"]
[EventType "swiss"]
[EventCountry "USA"]
[SourceTitle "playchess.com"]
[Source "ChessBase"]
[SourceQuality "1"]
[TimeControl "5400+30"]

{[%evp 10,84,39,37,35,10,16,8,17,10,8,4,13,0,16,16,46,23,64,52,41,0,0,0,111,108,116,113,108,90,239,239,216,119,129,70,129,20,22,25,34,40,45,6,33,2,2,2,2,2,2,2,2,9,40,26,285,277,282,190,270,67,67,67,74,74,74,0,0,0,0,0,0,0,0,0,0]} 1. e4 {[%emt 0:00:03]} e5 {[%emt 0:05:06]} 2. Nf3 {[%emt 0:00:07]} Nc6 {[%emt 0:00:07]} 3. Bc4 {[%emt 0:00:07]} Nf6 {[%emt 0:00:04]} 4. d3 {[%emt 0:00:09]} Be7 {[%emt 0:00:03]} 5. O-O {[%emt 0:00:12]} d6 {[%emt 0:00:02]} 6. a4 {[%emt 0:00:08]} Be6 {[%emt 0:00:06] C55: Two Knights: 4 d3, 4 d4 exd4 5 e5 and Max Lange Attack.} 7. Nc3 {[%emt 0:02:21]} Bxc4 {[%emt 0:00:10]} 8. dxc4 {[%emt 0:00:02]} O-O {[%emt 0:00:14]} 9. Re1 {[%emt 0:00:19]} a5 {[%emt 0:02:18]} 10. Nd5 {[%emt 0:00:49]} b6 {[%emt 0:01:26] [#]} 11. h3 $146 {[%emt 0:01:31]} ({Predecessor:} 11. c3 h6 12. Qc2 Nh7 13. h3 Bg5 14. Nxg5 hxg5 15. Be3 Ne7 16. Rad1 Nxd5 17. Rxd5 {1-0 Yudin,S (2556)-Krivonos,N (2295) Sibiria Region-ch 2010 (8)}) 11... h6 {[%emt 0:02:25]} 12. Nh2 {[%emt 0:00:39]} Qd7 {[%emt 0:27:57]} 13. Ra3 {[%emt 0:00:54]} Bd8 {[%emt 0:26:23]} 14. Rg3 {[%emt 0:11:21]} (14. Nxf6+ {simplifies} Bxf6 15. Qh5 Bg5 16. Bxg5 hxg5 17. Qxg5 f5 18. Nf3) 14... Kh7 {[%emt 0:02:12]} 15. Nxf6+ {[%emt 0:27:44]} Bxf6 {[%emt 0:00:06]} 16. Qh5 {[%emt 0:00:14]} Qe7 {[%emt 0:09:32]} (16... Qe6 $1 $11 {keeps the balance.}) 17. Ng4 $1 $16 {[%emt 0:04:56] Threatens to win with Qf5+. White has more active pieces.} (17. Bxh6 $2 gxh6 18. Ng4 Bg7 19. Qf5+ Kh8 $19) 17... Qe6 {[%emt 0:16:25] [#]} 18. Nxh6 $1 {[%emt 0:09:46][%mdl 512]} g6 {[%emt 0:00:12]} 19. Qd1 {[%emt 0:00:31][%cal Oh3h4]} (19. Nxf7+ $2 gxh5 20. Ng5+ Bxg5 21. Rxg5 Qxc4 22. Rxh5+ Kg8 $19) 19... Qxc4 {[%emt 0:03:19]} (19... Bh4 $16 {was called for.}) 20. Rc3 $18 {[%emt 0:06:17]} Qxa4 {[%emt 0:00:03]} 21. b3 {[%emt 0:02:33]} (21. Qg4 $1 $18 {[%cal Rg4d7]}) 21... Qb5 $16 {[%emt 0:00:03] [#]} 22. Nf5 {[%emt 0:01:39]} Rh8 {[%emt 0:01:21]} (22... gxf5 {gets mated.} 23. Qh5+ Kg8 24. Rg3+ Bg7 25. Qh6 (25. Qxf5 Ne7 $17) (25. Qxf5 Ne7 $15)) (22... Rac8 $1 $14) 23. Ne3 {[%emt 0:05:03]} ({Much worse is} 23. Qd2 $6 Rad8 $11) (23. Qg4 $16 {[%cal Oc1g5] aiming for Bg5!} Ne7 24. Nxe7 Bxe7 25. Rxc7) 23... Bd8 $11 {[%emt 0:01:34]} 24. Nd5 {[%emt 0:01:37][%cal Oc1g5] Black must now prevent Bg5!} Ra7 {[%emt 0:00:29]} 25. Rf3 {[%emt 0:04:42]} Nd4 {[%emt 0:00:49]} 26. Rxf7+ {[%emt 0:01:23]} Kg8 {[%emt 0:00:01]} 27. c4 {[%emt 0:00:24] Really sharp!} ({But not} 27. Nc3 Qc6 28. Rf3 Nxf3+ 29. Qxf3 Rh7 $17) (27. Rf4 $5 {[%cal Rf4g4]}) 27... Qe8 {[%emt 0:00:57]} 28. Nf6+ {[%emt 0:01:33]} Bxf6 $1 {[%emt 0:00:02][%mdl 64] Deflection} 29. Rxf6 $40 {[%emt 0:00:02][%mdl 128] White attacks.} Kg7 $1 {[%emt 0:00:19]} 30. Bg5 {[%emt 0:00:06]} Ne6 {[%emt 0:00:12]} 31. f4 {[%emt 0:01:19] And now Qg4 would win.} Nxf4 {[%emt 0:01:16]} 32. Rf1 {[%emt 0:02:21] Hoping for Qg4.} Rf8 $2 {[%emt 0:00:44][%mdl 8192]} (32... a4 $1 $11 {and Black has nothing to worry.}) 33. Rxf8 $18 {[%emt 0:01:16]} Qxf8 {[%emt 0:00:02] [#]} 34. g3 $1 {[%emt 0:00:06]} Nxh3+ {[%emt 0:00:11] [#]} 35. Kg2 $2 {[%emt 0:00:04]} (35. Kh2 $1 $18 Nf2 36. Qe2 Ng4+ 37. Kh3 Qh8+ 38. Bh4) 35... Qxf1+ $1 $14 {[%emt 0:00:58]} 36. Kxf1 {[%emt 0:00:31]} Nxg5 {[%emt 0:00:02][%mdl 4096] Endgame KQ-KRN} 37. Qg4 {[%emt 0:00:11]} Nf7 {[%emt 0:01:18]} 38. Qc8 {[%emt 0:00:58]} (38. Qd7 $16) 38... a4 $1 $11 {[%emt 0:00:21] The position is equal.} 39. bxa4 {[%emt 0:00:03]} Rxa4 {[%emt 0:00:22]} 40. Qxc7 {[%emt 0:00:04]} Rb4 {[%emt 0:00:30]} 41. g4 {[%emt 0:00:33]} g5 {[%emt 0:00:44]} 42. Ke2 {[%emt 0:00:33]} b5 {[%emt 0:00:25] Weighted Error Value: White=0.24 (precise) /Black=0.24 (precise)} 1/2-1/2

[Event "10th Cherry Blossom Classic 2023"]
[Site "Dulles"]
[Date "2023.05.28"]
[Round "5.9"]
[White "Plotkin, Mark"]
[Black "Sriniaiyer, Sudarshan"]
[Result "1/2-1/2"]
[ECO "B22"]
[WhiteElo "2341"]
[BlackElo "2211"]
[Annotator "TA"]
[PlyCount "60"]
[EventDate "2023.05.24"]
[EventType "swiss"]
[EventCountry "USA"]
[SourceTitle "playchess.com"]
[Source "ChessBase"]
[SourceQuality "1"]
[TimeControl "5400+30"]

{[%evp 10,60,3,4,12,22,16,0,8,0,0,0,0,-18,-14,-46,-10,-11,0,0,0,0,0,-17,-17,-50,-72,-77,-79,-68,-73,-76,-77,-72,-77,-154,-154,-157,-157,-157,-89,-92,-71,-73,-81,-90,-72,-94,-66,-58,-35,-32,-25]} 1. e4 {[%emt 0:00:29][%cal Be2e4,Be4e5][%mdl 32]} c5 {[%emt 0:01:16][%cal Bc7c5,Bc5d4][%mdl 32]} 2. c3 {[%emt 0:00:06]} Nf6 {[%emt 0:00:06]} 3. e5 {[%emt 0:00:04]} Nd5 {[%emt 0:00:07]} 4. d4 {[%emt 0:00:07]} cxd4 {[%emt 0:00:03]} 5. Nf3 {[%emt 0:00:04]} d6 {[%emt 0:00:58]} 6. Bc4 {[%emt 0:00:05]} dxe5 {[%emt 0:00:09] B22: Sicilian: 2 c3.} 7. Nxe5 {[%emt 0:00:29]} (7. Qb3 e6 $15) 7... e6 {[%emt 0:01:13]} 8. O-O {[%emt 0:01:33]} (8. Qxd4 $5 {[%cal Re1g1]} Be7 9. O-O $11) 8... Be7 {[%emt 0:06:22] The position is equal.} 9. cxd4 {[%emt 0:01:20]} O-O {[%emt 0:01:19]} 10. Re1 {[%emt 0:10:44]} Nc6 {[%emt 0:03:50]} 11. Nf3 {[%emt 0:01:17]} Bf6 {[%emt 0:06:36]} 12. Bb3 {[%emt 0:00:51] [#]} b6 $146 {[%emt 0:11:49]} ({Predecessor:} 12... Nde7 13. Re4 b6 14. Nc3 Bb7 15. Bg5 Ng6 16. h4 Na5 17. Rg4 Nxb3 18. axb3 h5 {½-½ Nikolova,A (2299)-Petrova,K (2298) Olympiad Women-40 2012 (8.3)}) 13. Nc3 {[%emt 0:00:57]} Nxc3 {[%emt 0:00:40]} 14. bxc3 {[%emt 0:00:01]} Bb7 {[%emt 0:00:30]} 15. Qd3 {[%emt 0:02:12][%cal Oh2h4]} Rc8 {[%emt 0:07:10]} 16. h4 {[%emt 0:02:35]} Na5 {[%emt 0:08:35]} 17. Bc2 {[%emt 0:00:06][%csl Gc2][%cal Rd3h7]} g6 {[%emt 0:00:02]} 18. Bh6 {[%emt 0:12:04]} Bg7 {[%emt 0:07:36]} 19. Bxg7 {[%emt 0:01:41]} Kxg7 {[%emt 0:03:44]} 20. Ng5 {[%emt 0:02:29]} Qd5 {[%emt 0:03:44][%csl Gb7][%cal Rd5g2]} 21. f3 {[%emt 0:07:51][%cal Oc2b3]} Qc4 {[%emt 0:01:18] Inhibits Bb3.} 22. Qe3 {[%emt 0:04:26]} (22. Qxc4 $142 Rxc4 23. Bb3 Rxc3 24. Bxe6) 22... Qxc3 $17 {[%emt 0:03:26]} 23. Qe5+ {[%emt 0:00:12]} Kg8 {[%emt 0:00:39]} 24. Be4 {[%emt 0:01:04] [#]} Qc7 {[%emt 0:01:26] Dodges Rac1} (24... Bxe4 $142 $1 25. Nxe4 Nc6 26. Nxc3 Nxe5 {[%mdl 64] Discovered Attack} 27. dxe5 Rxc3) 25. Bxb7 {[%emt 0:00:28]} Qxe5 {[%emt 0:03:13]} ({Reject} 25... Qxb7 $6 26. Ne4 $11) 26. dxe5 {[%emt 0:00:01]} Nxb7 {[%emt 0:00:00]} 27. Ne4 {[%emt 0:00:17]} Rfd8 {[%emt 0:06:42]} 28. Rad1 {[%emt 0:01:05]} Kg7 {[%emt 0:02:26]} 29. Rxd8 {[%emt 0:01:28]} Rxd8 {[%emt 0:04:00]} 30. Rc1 {[%emt 0:00:15] [#]} Nc5 $1 {[%emt 0:01:31] Weighted Error Value: White=0.13 (very precise) /Black=0.09 (flawless)} 1/2-1/2

[Event "10th Cherry Blossom Classic 2023"]
[Site "Dulles"]
[Date "2023.05.28"]
[Round "5.10"]
[White "Slate, Kent"]
[Black "Paul, Justin"]
[Result "0-1"]
[ECO "C54"]
[WhiteElo "1989"]
[BlackElo "2314"]
[Annotator "TA"]
[PlyCount "114"]
[EventDate "2023.05.24"]
[EventType "swiss"]
[EventCountry "USA"]
[SourceTitle "playchess.com"]
[Source "ChessBase"]
[SourceQuality "1"]
[TimeControl "5400+30"]

{[%evp 11,114,25,27,17,30,0,0,0,0,0,0,-14,0,-9,-8,-12,-7,-2,0,-17,-16,-10,-3,-3,-5,-1,-5,-10,0,0,0,0,0,-29,0,-42,0,-27,-27,-137,-143,-136,-153,-137,-148,-152,-144,-177,-129,-136,-134,-137,-137,-130,-130,-130,-130,-131,-116,-239,-168,-171,-172,-284,-226,-260,-269,-275,-252,-336,-331,-324,-327,-367,-383,-379,-370,-359,-362,-358,-341,-374,-366,-370,-333,-452,-447,-631,-645,-580,-570,-640,-636,-602,-610,-29977,-29978,-29978,-29979,-29980,-29980,-29981,-29983,-29987,-29988]} 1. e4 {[%emt 0:00:30]} e5 {[%emt 0:01:10]} 2. Nf3 {[%emt 0:00:09]} Nc6 {[%emt 0:00:05]} 3. Bc4 {[%emt 0:00:05]} Nf6 {[%emt 0:00:10]} 4. d3 {[%emt 0:00:07]} Bc5 {[%emt 0:00:12]} 5. O-O {[%emt 0:00:09]} a6 {[%emt 0:00:11]} 6. c3 {[%emt 0:02:38]} Ba7 {[%emt 0:00:37]} 7. a4 {[%emt 0:05:58] now scores much better than the old 7.Bb3. C54: Giuoco Piano: 4 c3 Nf6, main lines with 5 d4 and 5 d3.} h6 {[%emt 0:00:34]} 8. d4 {[%emt 0:10:53]} d6 {[%emt 0:04:42]} (8... Nxe4 {is more complex.} 9. dxe5 O-O 10. Bd5 Nxf2 11. Rxf2 d6) 9. dxe5 {[%emt 0:01:10] The position is equal.} Nxe5 {[%emt 0:00:38]} 10. Nxe5 {[%emt 0:00:29]} dxe5 {[%emt 0:00:07]} 11. Qxd8+ {[%emt 0:02:20]} Kxd8 {[%emt 0:00:03][%cal Be8d8,Bd8e7,Be7e6][%mdl 32] [#]} 12. Nd2 $146 {[%emt 0:00:44][%cal Bb1d2,Bd2f3,Bf3e5][%mdl 32]} ({Predecessor:} 12. Bxf7 Nxe4 13. Be3 Bxe3 14. fxe3 Rf8 15. Na3 Ke7 16. Bg6 Rxf1+ 17. Rxf1 Nd6 18. c4 {1-0 Bharath,S (2437)-Oliveira,S (2321) Titled Tuesday intern op 09th Feb blitz 2021 (9)}) 12... Ke7 {[%emt 0:07:35]} 13. Nf3 {[%emt 0:01:32]} Nxe4 {[%emt 0:02:36] With the idea ...f6.} 14. Nxe5 {[%emt 0:00:58]} Be6 {[%emt 0:01:36] Inhibits Bd5.} (14... Kf6 {keeps more tension.} 15. Nf3 Re8 16. Nd4 Nd6) 15. Bxe6 {[%emt 0:04:02]} Kxe6 {[%emt 0:00:03]} 16. Nc4 {[%emt 0:00:30]} Rhd8 {[%emt 0:07:18]} 17. Be3 {[%emt 0:00:46]} Bxe3 {[%emt 0:00:09]} 18. Nxe3 {[%emt 0:00:34]} f5 {[%emt 0:01:49]} 19. Rfe1 {[%emt 0:04:15]} Kf6 {[%emt 0:04:14]} 20. Rad1 {[%emt 0:00:56]} c6 {[%emt 0:01:16] Prevents Nd5+} 21. a5 {[%emt 0:03:03]} Nd2 {[%emt 0:05:49]} 22. Ra1 {[%emt 0:13:28]} Rd3 {[%emt 0:02:36]} 23. f3 {[%emt 0:02:39]} Rad8 {[%emt 0:04:18]} (23... Nb3 $5 {[%cal Rb3a1]} 24. Ra3 Nc5 $15) 24. Kf2 {[%emt 0:01:48]} Nb3 {[%emt 0:54:42]} 25. Ra4 {[%emt 0:02:22]} (25. Ra3 $11 Rd2+ 26. Kg1) 25... Rd2+ $17 {[%emt 0:00:00]} 26. Re2 {[%emt 0:00:26]} Nc1 $36 {[%emt 0:00:00][%mdl 2112] [#] Pin. Black is in control. Black is more active.} 27. Rxd2 {[%emt 0:01:21]} Rxd2+ {[%emt 0:00:00][%mdl 4096] Endgame KRN-KRN} 28. Kf1 {[%emt 0:00:57]} Rxb2 {[%emt 0:00:00]} 29. g4 {[%emt 0:05:26]} fxg4 {[%emt 0:00:00]} ({Black should play} 29... g6 $19 30. gxf5 gxf5) 30. Rf4+ {[%emt 0:01:09]} Ke6 {[%emt 0:00:00] [#] ...gxf3 would be deadly.} 31. Rxg4 {[%emt 0:00:40]} Nd3 {[%emt 0:00:00] aiming for ...Rf2+.} 32. Rxg7 {[%emt 0:01:45]} Rf2+ {[%emt 0:00:00]} 33. Kg1 {[%emt 0:00:06]} Rxf3 {[%emt 0:00:00]} 34. Nc2 {[%emt 0:06:39]} Nc5 {[%emt 0:00:00]} 35. Rg6+ {[%emt 0:04:12] Loses the game.} (35. Nd4+ $17 Kf6 36. Nxf3 Kxg7 37. Nd2) 35... Rf6 {[%emt 0:00:00]} 36. Rg4 {[%emt 0:00:28]} Nb3 {[%emt 0:00:00]} 37. Ra4 {[%emt 0:03:07]} (37. Nd4+ $142 Nxd4 38. Rxd4) 37... Rf5 $19 {[%emt 0:00:00]} 38. Rb4 {[%emt 0:04:37]} Rg5+ {[%emt 0:00:00]} (38... Nxa5 39. Nd4+ Kf6 40. Nxf5 Kxf5 41. Rh4 $16) 39. Kf2 {[%emt 0:00:04]} Nxa5 {[%emt 0:00:00]} 40. Ne3 {[%emt 0:00:09]} b5 {[%emt 0:00:00]} 41. Ke2 {[%emt 0:01:48]} Re5 {[%emt 0:00:00] Wards off Re4. White must now prevent ...Nc4.} 42. Kd2 {[%emt 0:01:04]} c5 {[%emt 0:00:00]} 43. Rg4 {[%emt 0:00:16]} Nb3+ {[%emt 0:00:00]} 44. Ke2 {[%emt 0:02:23]} Rg5 {[%emt 0:00:00] Inhibits Rg6+.} 45. Re4+ {[%emt 0:00:18]} Kd7 {[%emt 0:00:00]} 46. h4 {[%emt 0:00:15]} Rg6 {[%emt 0:00:00]} 47. h5 {[%emt 0:00:36]} Rg5 {[%emt 0:00:00]} 48. Ng4 {[%emt 0:00:19]} a5 {[%emt 0:00:00][%cal Ba6a5,Ba5a4][%mdl 32] Strongly threatening ...a4.} ({Resist} 48... Rxh5 49. Nf6+ Kc7 50. Nxh5 $18) 49. Kd1 {[%emt 0:01:14]} (49. Nf6+ $142 Kd6 50. Re8) 49... a4 {[%emt 0:00:00] ...a3 is the strong threat.} ({Weaker is} 49... Rxh5 50. Nf6+ Kc8 51. Nxh5 $18) 50. Kc2 {[%emt 0:00:31]} Kd6 {[%emt 0:00:00]} ({Not} 50... Rxh5 51. Nf6+ Kc7 52. Nxh5 $18) 51. Rf4 {[%emt 0:01:15]} Rxh5 {[%emt 0:00:00]} 52. Rf6+ {[%emt 0:00:16]} Kd5 {[%emt 0:00:00]} 53. Rxh6 {[%emt 0:00:07]} Rxh6 {[%emt 0:01:59] Black mates.} 54. Nxh6 {[%emt 0:00:05]} b4 {[%emt 0:00:35][%cal Bb5b4,Bb4b3][%mdl 32]} 55. Nf5 {[%emt 0:00:35]} Na5 {[%emt 0:00:26]} 56. Ne3+ {[%emt 0:04:06]} Ke4 {[%emt 0:00:20]} 57. Nd1 {[%emt 0:00:12]} b3+ {[%emt 0:00:16] Weighted Error Value: White=0.38/Black=0.05 (flawless)} 0-1